[Event "Titled Tuesday Blitz January 10 Late 2023"]
[White "Xiong, Jeffery"]
[Black "Zhigalko, Sergei"]
[WhiteFideId "2047640"]
[BlackFideId "13502956"]
[WhiteElo "2692"]
[BlackElo "2572"]
[Result "1-0"]
[Round "10"]
[TimeControl "180+2"]
[Date "2023.01.10"]
[WhiteClock "0:00:50"]
[BlackClock "0:00:19"]

1. e4 {[%clk 0:00:00]}  c5 {[%clk 0:00:00]} 2. Nf3 {[%clk 0:03:00]}  Nc6 {[%clk 0:02:59]} 3. Nc3 {[%clk 0:02:47]}  Nf6 {[%clk 0:03:00]} 4. Bb5 {[%clk 0:02:48]}  Qc7 {[%clk 0:03:00]} 5. O-O {[%clk 0:02:48]}  Nd4 {[%clk 0:02:59]} 6. Re1 {[%clk 0:02:48]}  a6 {[%clk 0:02:59]} 7. Bf1 {[%clk 0:02:47]}  e5 {[%clk 0:03:00]} 8. Nd5 {[%clk 0:02:46]}  Nxd5 {[%clk 0:02:58]} 9. exd5 {[%clk 0:02:46]}  d6 {[%clk 0:02:59]} 10. b4 {[%clk 0:02:47]}  b6 {[%clk 0:02:48]} 11. c3 {[%clk 0:02:47]}  Nxf3+ {[%clk 0:02:27]} 12. Qxf3 {[%clk 0:02:46]}  Be7 {[%clk 0:02:27]} 13. d4 {[%clk 0:02:46]}  Ra7 {[%clk 0:02:27]} 14. bxc5 {[%clk 0:02:47]}  bxc5 {[%clk 0:02:17]} 15. dxc5 {[%clk 0:02:43]}  dxc5 {[%clk 0:02:17]} 16. Bd3 {[%clk 0:02:43]}  Bd6 {[%clk 0:02:14]} 17. Qh5 {[%clk 0:02:43]}  c4 {[%clk 0:02:12]} 18. Bc2 {[%clk 0:02:21]}  Kf8 {[%clk 0:02:09]} 19. a4 {[%clk 0:02:20]}  Bd7 {[%clk 0:01:53]} 20. Rb1 {[%clk 0:01:43]}  Rb7 {[%clk 0:01:51]} 21. Rxb7 {[%clk 0:01:34]}  Qxb7 {[%clk 0:01:38]} 22. Rxe5 {[%clk 0:01:35]}  Bxe5 {[%clk 0:01:39]} 23. Qxe5 {[%clk 0:01:34]}  f6 {[%clk 0:01:40]} 24. Ba3+ {[%clk 0:01:35]}  Kg8 {[%clk 0:01:41]} 25. Qd6 {[%clk 0:01:33]}  Qc8 {[%clk 0:01:40]} 26. h3 {[%clk 0:01:24]}  Qe8 {[%clk 0:01:20]} 27. a5 {[%clk 0:01:24]}  Qe1+ {[%clk 0:01:17]} 28. Kh2 {[%clk 0:01:22]}  Qe5+ {[%clk 0:01:14]} 29. Qxe5 {[%clk 0:01:22]}  fxe5 {[%clk 0:01:15]} 30. Bd6 {[%clk 0:01:21]}  Kf7 {[%clk 0:01:16]} 31. Bxe5 {[%clk 0:01:22]}  Rc8 {[%clk 0:01:03]} 32. Bd4 {[%clk 0:01:22]}  Re8 {[%clk 0:01:04]} 33. h4 {[%clk 0:01:21]}  h5 {[%clk 0:01:03]} 34. Bd1 {[%clk 0:01:13]}  g6 {[%clk 0:00:56]} 35. Kg3 {[%clk 0:01:09]}  Re1 {[%clk 0:00:56]} 36. Bf3 {[%clk 0:01:03]}  Ra1 {[%clk 0:00:55]} 37. Bb6 {[%clk 0:01:03]}  Ra3 {[%clk 0:00:51]} 38. Bd4 {[%clk 0:01:02]}  Rxa5 {[%clk 0:00:50]} 39. Kf4 {[%clk 0:01:01]}  Ra2 {[%clk 0:00:49]} 40. Ke5 {[%clk 0:01:01]}  a5 {[%clk 0:00:30]} 41. Kd6 {[%clk 0:00:50]}  Ke8 {[%clk 0:00:30]} 42. Kc7 {[%clk 0:00:49]}  a4 {[%clk 0:00:22]} 43. Be4 {[%clk 0:00:50]}  Bf5 {[%clk 0:00:20]} 44. Bxf5 {[%clk 0:00:50]}  gxf5 {[%clk 0:00:19]} 45. d6 {[%clk 0:00:50]} 1-0


[Site "https://www.chess.com"]

[Event "Titled Tuesday Blitz January 10 Late 2023"]
[White "Indjic, Aleksandar"]
[Black "Caruana, Fabiano"]
[WhiteFideId "911925"]
[BlackFideId "2020009"]
[WhiteElo "2618"]
[BlackElo "2764"]
[Result "0-1"]
[Round "10"]
[TimeControl "180+2"]
[Date "2023.01.10"]
[WhiteClock "0:00:08"]
[BlackClock "0:01:25"]

1. d4 {[%clk 0:00:00]}  Nf6 {[%clk 0:00:00]} 2. Bg5 {[%clk 0:03:00]}  e6 {[%clk 0:02:59]} 3. e4 {[%clk 0:03:00]}  h6 {[%clk 0:02:58]} 4. Bxf6 {[%clk 0:02:59]}  Qxf6 {[%clk 0:02:59]} 5. c3 {[%clk 0:02:59]}  d5 {[%clk 0:03:00]} 6. Nd2 {[%clk 0:02:58]}  Qd8 {[%clk 0:02:59]} 7. Ngf3 {[%clk 0:02:55]}  Be7 {[%clk 0:02:57]} 8. Bb5+ {[%clk 0:02:49]}  c6 {[%clk 0:02:56]} 9. Bd3 {[%clk 0:02:25]}  Nd7 {[%clk 0:02:56]} 10. Qe2 {[%clk 0:02:24]}  b6 {[%clk 0:02:56]} 11. h4 {[%clk 0:02:23]}  Bb7 {[%clk 0:02:54]} 12. exd5 {[%clk 0:02:23]}  cxd5 {[%clk 0:02:54]} 13. Ba6 {[%clk 0:02:21]}  Bxa6 {[%clk 0:02:52]} 14. Qxa6 {[%clk 0:02:16]}  Qc8 {[%clk 0:02:48]} 15. Qe2 {[%clk 0:02:17]}  Qc6 {[%clk 0:02:48]} 16. a4 {[%clk 0:02:15]}  O-O {[%clk 0:02:44]} 17. g4 {[%clk 0:02:13]}  a6 {[%clk 0:02:42]} 18. Rg1 {[%clk 0:02:10]}  g6 {[%clk 0:02:38]} 19. Qe3 {[%clk 0:02:05]}  Kg7 {[%clk 0:02:32]} 20. g5 {[%clk 0:01:58]}  h5 {[%clk 0:02:30]} 21. Ne5 {[%clk 0:01:15]}  Nxe5 {[%clk 0:02:29]} 22. Qxe5+ {[%clk 0:01:05]}  Kg8 {[%clk 0:02:28]} 23. Qe3 {[%clk 0:01:06]}  b5 {[%clk 0:02:28]} 24. axb5 {[%clk 0:00:29]}  axb5 {[%clk 0:02:23]} 25. Rxa8 {[%clk 0:00:29]}  Rxa8 {[%clk 0:02:22]} 26. Ke2 {[%clk 0:00:27]}  b4 {[%clk 0:02:21]} 27. Rc1 {[%clk 0:00:28]}  Ra2 {[%clk 0:02:20]} 28. Rb1 {[%clk 0:00:28]}  Bd6 {[%clk 0:02:17]} 29. Kf3 {[%clk 0:00:25]}  Qa4 {[%clk 0:02:12]} 30. Qd3 {[%clk 0:00:21]}  Kg7 {[%clk 0:02:04]} 31. Nf1 {[%clk 0:00:18]}  bxc3 {[%clk 0:01:52]} 32. bxc3 {[%clk 0:00:14]}  e5 {[%clk 0:01:42]} 33. Kg2 {[%clk 0:00:15]}  e4 {[%clk 0:01:43]} 34. Qd1 {[%clk 0:00:14]}  Qc4 {[%clk 0:01:38]} 35. Ne3 {[%clk 0:00:11]}  Qxc3 {[%clk 0:01:29]} 36. Qe1 {[%clk 0:00:09]}  Qxd4 {[%clk 0:01:29]} 37. Rd1 {[%clk 0:00:09]}  Qe5 {[%clk 0:01:26]} 38. Kf1 {[%clk 0:00:08]}  Qh2 {[%clk 0:01:25]} 0-1


[Site "https://www.chess.com"]

[Event "Titled Tuesday Blitz January 10 Late 2023"]
[White "Jobava, Baadur"]
[Black "Movahed, Sina"]
[WhiteFideId "13601520"]
[BlackFideId "42520835"]
[WhiteElo "2578"]
[BlackElo "2340"]
[Result "1-0"]
[Round "10"]
[TimeControl "180+2"]
[Date "2023.01.10"]
[WhiteClock "0:00:36"]
[BlackClock "0:00:07"]

1. b3 {[%clk 0:00:00]}  e5 {[%clk 0:00:00]} 2. Bb2 {[%clk 0:03:00]}  Nc6 {[%clk 0:02:59]} 3. Nf3 {[%clk 0:03:01]}  e4 {[%clk 0:02:59]} 4. Nd4 {[%clk 0:03:01]}  Nf6 {[%clk 0:02:57]} 5. e3 {[%clk 0:02:59]}  Bc5 {[%clk 0:02:56]} 6. Nf5 {[%clk 0:02:58]}  O-O {[%clk 0:02:55]} 7. c4 {[%clk 0:02:56]}  d6 {[%clk 0:02:51]} 8. Ng3 {[%clk 0:02:53]}  Re8 {[%clk 0:02:38]} 9. Nc3 {[%clk 0:02:51]}  a5 {[%clk 0:02:38]} 10. Be2 {[%clk 0:02:50]}  g6 {[%clk 0:02:30]} 11. O-O {[%clk 0:02:48]}  h5 {[%clk 0:02:18]} 12. f3 {[%clk 0:02:42]}  exf3 {[%clk 0:02:16]} 13. Bxf3 {[%clk 0:02:26]}  h4 {[%clk 0:02:14]} 14. Nge4 {[%clk 0:02:27]}  Nxe4 {[%clk 0:02:12]} 15. Nxe4 {[%clk 0:02:22]}  Ne5 {[%clk 0:01:42]} 16. Bxe5 {[%clk 0:02:23]}  Rxe5 {[%clk 0:01:42]} 17. d4 {[%clk 0:02:18]}  Rxe4 {[%clk 0:01:39]} 18. Bxe4 {[%clk 0:02:18]}  Bb6 {[%clk 0:01:34]} 19. Bd5 {[%clk 0:02:19]}  c6 {[%clk 0:01:34]} 20. Bxf7+ {[%clk 0:02:13]}  Kg7 {[%clk 0:01:31]} 21. Qd3 {[%clk 0:02:12]}  Qg5 {[%clk 0:01:31]} 22. Qc3 {[%clk 0:01:14]}  Bf5 {[%clk 0:01:27]} 23. c5 {[%clk 0:01:05]}  Bc7 {[%clk 0:01:10]} 24. Be6 {[%clk 0:00:55]}  Be4 {[%clk 0:01:06]} 25. Rf7+ {[%clk 0:00:49]}  Kh6 {[%clk 0:00:59]} 26. Bh3 {[%clk 0:00:47]}  Rc8 {[%clk 0:00:58]} 27. d5 {[%clk 0:00:41]}  Rg8 {[%clk 0:00:09]} 28. Rxc7 {[%clk 0:00:37]}  Bxd5 {[%clk 0:00:07]} 29. cxd6 {[%clk 0:00:36]} 1-0


[Site "https://www.chess.com"]

[Event "Titled Tuesday Blitz January 10 Late 2023"]
[White "Bryakin, Mikhail"]
[Black "Mosadeghpour, Masoud"]
[WhiteFideId "4165314"]
[BlackFideId "12519278"]
[WhiteElo "2455"]
[BlackElo "2472"]
[Result "0-1"]
[Round "10"]
[TimeControl "180+2"]
[Date "2023.01.10"]
[WhiteClock "0:00:07"]
[BlackClock "0:00:59"]

1. Nf3 {[%clk 0:00:00]}  Nf6 {[%clk 0:00:00]} 2. d4 {[%clk 0:02:58]}  e6 {[%clk 0:02:59]} 3. c4 {[%clk 0:02:54]}  d5 {[%clk 0:02:59]} 4. g3 {[%clk 0:02:54]}  Bb4+ {[%clk 0:02:59]} 5. Bd2 {[%clk 0:02:54]}  Be7 {[%clk 0:02:59]} 6. Bg2 {[%clk 0:02:55]}  O-O {[%clk 0:02:59]} 7. O-O {[%clk 0:02:53]}  Nbd7 {[%clk 0:03:00]} 8. Qc2 {[%clk 0:02:54]}  Ne4 {[%clk 0:03:00]} 9. Nc3 {[%clk 0:02:55]}  Nxd2 {[%clk 0:03:01]} 10. Nxd2 {[%clk 0:02:54]}  c6 {[%clk 0:03:00]} 11. e4 {[%clk 0:02:54]}  dxc4 {[%clk 0:03:01]} 12. Nxc4 {[%clk 0:02:54]}  b5 {[%clk 0:03:02]} 13. Ne3 {[%clk 0:02:53]}  Rb8 {[%clk 0:03:02]} 14. Rfd1 {[%clk 0:02:52]}  c5 {[%clk 0:03:03]} 15. d5 {[%clk 0:02:52]}  c4 {[%clk 0:03:03]} 16. a4 {[%clk 0:02:49]}  a6 {[%clk 0:03:04]} 17. axb5 {[%clk 0:02:47]}  axb5 {[%clk 0:03:04]} 18. d6 {[%clk 0:02:45]}  Bf6 {[%clk 0:03:04]} 19. Ng4 {[%clk 0:02:21]}  Ne5 {[%clk 0:03:03]} 20. Nxf6+ {[%clk 0:02:21]}  Qxf6 {[%clk 0:03:02]} 21. f4 {[%clk 0:02:09]}  Nd3 {[%clk 0:03:03]} 22. e5 {[%clk 0:02:07]}  Qd8 {[%clk 0:03:03]} 23. Rxd3 {[%clk 0:02:07]}  cxd3 {[%clk 0:03:03]} 24. Qxd3 {[%clk 0:01:53]}  Qb6+ {[%clk 0:02:56]} 25. Kh1 {[%clk 0:01:54]}  Bb7 {[%clk 0:02:53]} 26. Bxb7 {[%clk 0:01:54]}  Qxb7+ {[%clk 0:02:51]} 27. Qe4 {[%clk 0:01:50]}  Qxe4+ {[%clk 0:02:51]} 28. Nxe4 {[%clk 0:01:50]}  Rfc8 {[%clk 0:02:45]} 29. b4 {[%clk 0:01:51]}  Rc4 {[%clk 0:02:45]} 30. Nc5 {[%clk 0:01:45]}  Rxb4 {[%clk 0:02:35]} 31. Ra7 {[%clk 0:01:45]}  Rc4 {[%clk 0:02:30]} 32. Rc7 {[%clk 0:01:36]}  Rd8 {[%clk 0:02:26]} 33. Kg2 {[%clk 0:01:33]}  b4 {[%clk 0:02:09]} 34. d7 {[%clk 0:01:11]}  Rd4 {[%clk 0:02:08]} 35. Rb7 {[%clk 0:01:05]}  Rd5 {[%clk 0:02:03]} 36. Ne4 {[%clk 0:00:34]}  R5xd7 {[%clk 0:02:02]} 37. Rxb4 {[%clk 0:00:22]}  Rd4 {[%clk 0:02:02]} 38. Rxd4 {[%clk 0:00:21]}  Rxd4 {[%clk 0:02:02]} 39. Kf3 {[%clk 0:00:19]}  Rd3+ {[%clk 0:02:03]} 40. Kg4 {[%clk 0:00:18]}  Ra3 {[%clk 0:02:02]} 41. h4 {[%clk 0:00:17]}  Kf8 {[%clk 0:02:02]} 42. h5 {[%clk 0:00:17]}  h6 {[%clk 0:02:00]} 43. Nf2 {[%clk 0:00:17]}  Ra4 {[%clk 0:02:00]} 44. Nd3 {[%clk 0:00:15]}  Rc4 {[%clk 0:01:57]} 45. Ne1 {[%clk 0:00:15]}  Ke7 {[%clk 0:01:56]} 46. Nf3 {[%clk 0:00:15]}  Rb4 {[%clk 0:01:55]} 47. Nd2 {[%clk 0:00:16]}  f5+ {[%clk 0:01:53]} 48. Kh3 {[%clk 0:00:16]}  Kd7 {[%clk 0:01:49]} 49. Nf3 {[%clk 0:00:13]}  Kc6 {[%clk 0:01:45]} 50. Nh4 {[%clk 0:00:13]}  Kd5 {[%clk 0:01:45]} 51. Ng6 {[%clk 0:00:14]}  Rb7 {[%clk 0:01:44]} 52. Nf8 {[%clk 0:00:15]}  Re7 {[%clk 0:01:40]} 53. Kg2 {[%clk 0:00:14]}  Ke4 {[%clk 0:01:35]} 54. Ng6 {[%clk 0:00:13]}  Re8 {[%clk 0:01:35]} 55. Nh4 {[%clk 0:00:10]}  Ra8 {[%clk 0:01:35]} 56. Ng6 {[%clk 0:00:10]}  Ra2+ {[%clk 0:01:34]} 57. Kh3 {[%clk 0:00:11]}  Ra1 {[%clk 0:01:34]} 58. Nf8 {[%clk 0:00:11]}  Kf3 {[%clk 0:01:27]} 59. Kh2 {[%clk 0:00:09]}  Ra6 {[%clk 0:01:25]} 60. Kh3 {[%clk 0:00:09]}  Kf2 {[%clk 0:01:17]} 61. Kh2 {[%clk 0:00:09]}  Kf1 {[%clk 0:01:13]} 62. g4 {[%clk 0:00:09]}  Ra2+ {[%clk 0:01:04]} 63. Kh3 {[%clk 0:00:07]}  Ra3+ {[%clk 0:01:00]} 64. Kh4 {[%clk 0:00:07]}  Kg2 {[%clk 0:00:58]} 65. gxf5 {[%clk 0:00:07]}  exf5 {[%clk 0:00:59]} 0-1


[Site "https://www.chess.com"]

[Event "Titled Tuesday Blitz January 10 Late 2023"]
[White "Borges Feria, Yasel"]
[Black "Hansen, Eric"]
[WhiteFideId "3504921"]
[BlackFideId "2606771"]
[WhiteElo "2439"]
[BlackElo "2609"]
[Result "1-0"]
[Round "10"]
[TimeControl "180+2"]
[Date "2023.01.10"]
[WhiteClock "0:00:05"]
[BlackClock "0:00:02"]

1. d4 {[%clk 0:00:00]}  Nf6 {[%clk 0:00:00]} 2. c4 {[%clk 0:02:59]}  e6 {[%clk 0:02:34]} 3. Nf3 {[%clk 0:02:58]}  Bb4+ {[%clk 0:02:31]} 4. Bd2 {[%clk 0:02:50]}  Be7 {[%clk 0:02:31]} 5. Nc3 {[%clk 0:02:48]}  d5 {[%clk 0:02:31]} 6. cxd5 {[%clk 0:02:45]}  exd5 {[%clk 0:02:32]} 7. Bg5 {[%clk 0:02:43]}  c6 {[%clk 0:02:32]} 8. e3 {[%clk 0:02:40]}  Bf5 {[%clk 0:02:32]} 9. Bd3 {[%clk 0:02:40]}  Bg6 {[%clk 0:02:33]} 10. O-O {[%clk 0:02:37]}  Nbd7 {[%clk 0:02:33]} 11. Rb1 {[%clk 0:02:34]}  a5 {[%clk 0:02:32]} 12. Re1 {[%clk 0:02:26]}  O-O {[%clk 0:02:32]} 13. Bxg6 {[%clk 0:02:17]}  hxg6 {[%clk 0:02:32]} 14. Bxf6 {[%clk 0:02:15]}  gxf6 {[%clk 0:02:32]} 15. Qd3 {[%clk 0:02:15]}  f5 {[%clk 0:02:28]} 16. g3 {[%clk 0:02:10]}  Bd6 {[%clk 0:02:28]} 17. a3 {[%clk 0:02:07]}  Re8 {[%clk 0:02:28]} 18. Kg2 {[%clk 0:01:55]}  Nf6 {[%clk 0:02:27]} 19. Rec1 {[%clk 0:01:50]}  Kg7 {[%clk 0:02:25]} 20. h4 {[%clk 0:01:39]}  Ne4 {[%clk 0:02:24]} 21. Ne2 {[%clk 0:01:36]}  Qe7 {[%clk 0:02:24]} 22. Rh1 {[%clk 0:01:35]}  Rh8 {[%clk 0:02:21]} 23. Nf4 {[%clk 0:01:34]}  Rae8 {[%clk 0:02:19]} 24. Rbe1 {[%clk 0:01:33]}  Qd8 {[%clk 0:02:17]} 25. Qc2 {[%clk 0:01:32]}  Qc7 {[%clk 0:02:12]} 26. Rc1 {[%clk 0:01:32]}  Qb8 {[%clk 0:02:09]} 27. Rb1 {[%clk 0:01:26]}  Nf6 {[%clk 0:02:01]} 28. b4 {[%clk 0:01:22]}  axb4 {[%clk 0:01:54]} 29. axb4 {[%clk 0:01:19]}  Ng4 {[%clk 0:01:54]} 30. Rb3 {[%clk 0:01:20]}  Qa7 {[%clk 0:01:54]} 31. b5 {[%clk 0:01:15]}  Bxf4 {[%clk 0:01:24]} 32. exf4 {[%clk 0:01:04]}  Re6 {[%clk 0:00:57]} 33. bxc6 {[%clk 0:00:59]}  bxc6 {[%clk 0:00:53]} 34. Qb2 {[%clk 0:00:59]}  Qa6 {[%clk 0:00:50]} 35. Ne5 {[%clk 0:00:39]}  Nxe5 {[%clk 0:00:44]} 36. dxe5 {[%clk 0:00:38]}  c5 {[%clk 0:00:37]} 37. Rc1 {[%clk 0:00:32]}  c4 {[%clk 0:00:37]} 38. Ra3 {[%clk 0:00:30]}  Qc6 {[%clk 0:00:25]} 39. Qd4 {[%clk 0:00:29]}  Ra8 {[%clk 0:00:22]} 40. Rxa8 {[%clk 0:00:28]}  Qxa8 {[%clk 0:00:21]} 41. Rd1 {[%clk 0:00:27]}  Qc8 {[%clk 0:00:22]} 42. Qxd5 {[%clk 0:00:24]}  c3 {[%clk 0:00:14]} 43. Rc1 {[%clk 0:00:23]}  c2 {[%clk 0:00:14]} 44. Qd3 {[%clk 0:00:24]}  Rc6 {[%clk 0:00:15]} 45. Kh2 {[%clk 0:00:15]}  Rc4 {[%clk 0:00:15]} 46. Qe2 {[%clk 0:00:15]}  Qc5 {[%clk 0:00:14]} 47. Kg1 {[%clk 0:00:15]}  Rc3 {[%clk 0:00:13]} 48. Kh2 {[%clk 0:00:14]}  Qc6 {[%clk 0:00:13]} 49. Kg1 {[%clk 0:00:14]}  Kh6 {[%clk 0:00:09]} 50. Kh2 {[%clk 0:00:10]}  Rc5 {[%clk 0:00:07]} 51. Kg1 {[%clk 0:00:10]}  Qb7 {[%clk 0:00:02]} 52. Kh2 {[%clk 0:00:11]}  Qc8 {[%clk 0:00:02]} 53. Kg1 {[%clk 0:00:09]}  Rc3 {[%clk 0:00:03]} 54. Kh2 {[%clk 0:00:07]}  Qc5 {[%clk 0:00:03]} 55. Kg2 {[%clk 0:00:05]}  Qd5+ {[%clk 0:00:03]} 56. Kh2 {[%clk 0:00:03]}  Qb3 {[%clk 0:00:02]} 57. Kg2 {[%clk 0:00:03]}  Qb2 {[%clk 0:00:03]} 58. Qd2 {[%clk 0:00:03]}  Qxc1 {[%clk 0:00:03]} 59. Qxc1 {[%clk 0:00:03]}  Kh7 {[%clk 0:00:02]} 60. f3 {[%clk 0:00:03]}  Rc4 {[%clk 0:00:02]} 61. Kf2 {[%clk 0:00:03]}  Rc8 {[%clk 0:00:02]} 62. Ke3 {[%clk 0:00:04]}  Kg7 {[%clk 0:00:02]} 63. Kd3 {[%clk 0:00:04]}  f6 {[%clk 0:00:02]} 64. exf6+ {[%clk 0:00:05]}  Kxf6 {[%clk 0:00:02]} 65. Qxc2 {[%clk 0:00:04]}  Rxc2 {[%clk 0:00:02]} 66. Kxc2 {[%clk 0:00:05]}  Ke6 {[%clk 0:00:03]} 67. Kc3 {[%clk 0:00:06]}  Kd5 {[%clk 0:00:03]} 68. Kd3 {[%clk 0:00:06]}  Kc5 {[%clk 0:00:01]} 69. g4 {[%clk 0:00:06]}  Kd5 {[%clk 0:00:01]} 70. Ke3 {[%clk 0:00:06]}  Ke6 {[%clk 0:00:02]} 71. Kd4 {[%clk 0:00:05]}  Kd6 {[%clk 0:00:01]} 72. h5 {[%clk 0:00:05]}  Ke6 {[%clk 0:00:02]} 73. hxg6 {[%clk 0:00:05]} 1-0


[Site "https://www.chess.com"]

[Event "Titled Tuesday Blitz January 10 Late 2023"]
[White "Zakhartsov, Vladimir"]
[Black "Sokolovsky, Yahli"]
[WhiteFideId "4145097"]
[BlackFideId "2820242"]
[WhiteElo "2552"]
[BlackElo "2461"]
[Result "1/2-1/2"]
[Round "10"]
[TimeControl "180+2"]
[Date "2023.01.10"]
[WhiteClock "0:00:04"]
[BlackClock "0:00:06"]

1. e4 {[%clk 0:00:00]}  d6 {[%clk 0:00:00]} 2. d4 {[%clk 0:02:57]}  g6 {[%clk 0:03:00]} 3. f4 {[%clk 0:02:57]}  Nf6 {[%clk 0:03:00]} 4. e5 {[%clk 0:02:57]}  dxe5 {[%clk 0:02:58]} 5. fxe5 {[%clk 0:02:56]}  Nd5 {[%clk 0:02:56]} 6. Bc4 {[%clk 0:02:56]}  Bg7 {[%clk 0:02:50]} 7. Nf3 {[%clk 0:02:46]}  O-O {[%clk 0:02:46]} 8. O-O {[%clk 0:02:46]}  Bg4 {[%clk 0:02:44]} 9. c3 {[%clk 0:02:46]}  e6 {[%clk 0:02:39]} 10. b4 {[%clk 0:02:45]}  a5 {[%clk 0:02:15]} 11. b5 {[%clk 0:02:17]}  c5 {[%clk 0:01:57]} 12. bxc6 {[%clk 0:02:16]}  Nxc6 {[%clk 0:01:58]} 13. h3 {[%clk 0:02:16]}  Bxf3 {[%clk 0:01:58]} 14. Qxf3 {[%clk 0:02:10]}  Rc8 {[%clk 0:01:58]} 15. Ba3 {[%clk 0:02:10]}  Nxe5 {[%clk 0:01:44]} 16. dxe5 {[%clk 0:02:06]}  Rxc4 {[%clk 0:01:23]} 17. Bxf8 {[%clk 0:02:06]}  Qxf8 {[%clk 0:01:23]} 18. Re1 {[%clk 0:02:06]}  Rf4 {[%clk 0:01:24]} 19. Qd3 {[%clk 0:01:35]}  Qc5+ {[%clk 0:01:15]} 20. Kh1 {[%clk 0:01:32]}  Qf2 {[%clk 0:01:14]} 21. Nd2 {[%clk 0:01:32]}  Rh4 {[%clk 0:00:34]} 22. Rf1 {[%clk 0:01:30]}  Qa7 {[%clk 0:00:31]} 23. c4 {[%clk 0:01:06]}  Qe3 {[%clk 0:00:21]} 24. Rf3 {[%clk 0:01:02]}  Qxe5 {[%clk 0:00:19]} 25. Raf1 {[%clk 0:00:47]}  Rd4 {[%clk 0:00:11]} 26. Qc2 {[%clk 0:00:44]}  Ne3 {[%clk 0:00:11]} 27. Qb3 {[%clk 0:00:34]}  Nxf1 {[%clk 0:00:12]} 28. Nxf1 {[%clk 0:00:18]}  Rd7 {[%clk 0:00:12]} 29. Qa4 {[%clk 0:00:16]}  Qd4 {[%clk 0:00:12]} 30. Qxa5 {[%clk 0:00:14]}  Be5 {[%clk 0:00:10]} 31. Ne3 {[%clk 0:00:12]}  Bc7 {[%clk 0:00:06]} 32. Qe1 {[%clk 0:00:06]}  Qe5 {[%clk 0:00:05]} 33. Qg1 {[%clk 0:00:05]}  Rd3 {[%clk 0:00:04]} 34. Ng4 {[%clk 0:00:03]}  Qd4 {[%clk 0:00:03]} 35. Rxd3 {[%clk 0:00:03]}  Qxd3 {[%clk 0:00:04]} 36. c5 {[%clk 0:00:01]}  Qg3 {[%clk 0:00:04]} 37. Qf2 {[%clk 0:00:01]}  Qc3 {[%clk 0:00:04]} 38. Nf6+ {[%clk 0:00:02]}  Kf8 {[%clk 0:00:02]} 39. Ng4 {[%clk 0:00:01]}  Qc1+ {[%clk 0:00:02]} 40. Qg1 {[%clk 0:00:01]}  Qxg1+ {[%clk 0:00:02]} 41. Kxg1 {[%clk 0:00:02]}  Kg7 {[%clk 0:00:03]} 42. Kf2 {[%clk 0:00:02]}  f5 {[%clk 0:00:03]} 43. Ne3 {[%clk 0:00:03]}  Be5 {[%clk 0:00:04]} 44. Nc2 {[%clk 0:00:03]}  Kf7 {[%clk 0:00:05]} 45. Ke3 {[%clk 0:00:02]}  Ke7 {[%clk 0:00:04]} 46. Kd3 {[%clk 0:00:03]}  Kd7 {[%clk 0:00:05]} 47. Kc4 {[%clk 0:00:04]}  Bc7 {[%clk 0:00:05]} 48. a4 {[%clk 0:00:04]}  e5 {[%clk 0:00:05]} 49. Kd5 {[%clk 0:00:04]}  e4 {[%clk 0:00:05]} 50. Nd4 {[%clk 0:00:04]}  Bf4 {[%clk 0:00:05]} 51. c6+ {[%clk 0:00:03]}  bxc6+ {[%clk 0:00:04]} 52. Nxc6 {[%clk 0:00:03]}  e3 {[%clk 0:00:04]} 53. Nd4 {[%clk 0:00:04]}  Bc7 {[%clk 0:00:04]} 54. Ne2 {[%clk 0:00:04]}  Bb6 {[%clk 0:00:03]} 55. Ke5 {[%clk 0:00:04]}  Ke7 {[%clk 0:00:03]} 56. g4 {[%clk 0:00:03]}  fxg4 {[%clk 0:00:03]} 57. hxg4 {[%clk 0:00:02]}  h5 {[%clk 0:00:03]} 58. gxh5 {[%clk 0:00:03]}  gxh5 {[%clk 0:00:03]} 59. Kf4 {[%clk 0:00:03]}  Kf6 {[%clk 0:00:04]} 60. Kf3 {[%clk 0:00:04]}  Ke5 {[%clk 0:00:04]} 61. Nc3 {[%clk 0:00:03]}  h4 {[%clk 0:00:04]} 62. Nd1 {[%clk 0:00:03]}  h3 {[%clk 0:00:04]} 63. Nxe3 {[%clk 0:00:03]}  h2 {[%clk 0:00:03]} 64. Kg2 {[%clk 0:00:03]}  Bxe3 {[%clk 0:00:02]} 65. a5 {[%clk 0:00:03]}  Bf4 {[%clk 0:00:02]} 66. a6 {[%clk 0:00:03]}  Be3 {[%clk 0:00:02]} 67. Kh1 {[%clk 0:00:03]}  Ba7 {[%clk 0:00:03]} 68. Kg2 {[%clk 0:00:03]}  Kd5 {[%clk 0:00:04]} 69. Kh1 {[%clk 0:00:03]}  Kc6 {[%clk 0:00:04]} 70. Kxh2 {[%clk 0:00:04]}  Kb5 {[%clk 0:00:05]} 71. Kg2 {[%clk 0:00:04]}  Kxa6 {[%clk 0:00:06]} 1/2-1/2


[Site "https://www.chess.com"]

[Event "Titled Tuesday Blitz January 10 Late 2023"]
[White "Ivic, Velimir"]
[Black "Averjanov, Alexey"]
[WhiteFideId "950122"]
[BlackFideId "14109867"]
[WhiteElo "2595"]
[BlackElo "2399"]
[Result "1-0"]
[Round "10"]
[TimeControl "180+2"]
[Date "2023.01.10"]
[WhiteClock "0:00:03"]
[BlackClock "0:00:02"]

1. d4 {[%clk 0:00:00]}  d5 {[%clk 0:00:00]} 2. c4 {[%clk 0:03:00]}  dxc4 {[%clk 0:03:00]} 3. e4 {[%clk 0:02:59]}  Nf6 {[%clk 0:03:00]} 4. e5 {[%clk 0:02:57]}  Nd5 {[%clk 0:03:01]} 5. Bxc4 {[%clk 0:02:56]}  Nb6 {[%clk 0:03:01]} 6. Bb3 {[%clk 0:02:57]}  Nc6 {[%clk 0:03:01]} 7. Ne2 {[%clk 0:02:55]}  Bf5 {[%clk 0:03:02]} 8. Nbc3 {[%clk 0:02:54]}  e6 {[%clk 0:03:02]} 9. O-O {[%clk 0:02:53]}  Nb4 {[%clk 0:03:02]} 10. Ng3 {[%clk 0:02:47]}  Bg6 {[%clk 0:03:02]} 11. Nge4 {[%clk 0:02:41]}  N4d5 {[%clk 0:03:02]} 12. Qe2 {[%clk 0:02:41]}  Be7 {[%clk 0:03:01]} 13. Be3 {[%clk 0:02:35]}  O-O {[%clk 0:03:01]} 14. Rac1 {[%clk 0:02:20]}  a5 {[%clk 0:03:00]} 15. a3 {[%clk 0:02:19]}  a4 {[%clk 0:02:59]} 16. Ba2 {[%clk 0:02:18]}  Nxc3 {[%clk 0:02:59]} 17. Nxc3 {[%clk 0:02:16]}  c6 {[%clk 0:02:56]} 18. f4 {[%clk 0:02:14]}  Nd5 {[%clk 0:02:55]} 19. Kh1 {[%clk 0:02:06]}  Nxe3 {[%clk 0:02:49]} 20. Qxe3 {[%clk 0:01:38]}  Qb6 {[%clk 0:02:43]} 21. Rf2 {[%clk 0:01:38]}  Rfd8 {[%clk 0:02:43]} 22. Rd1 {[%clk 0:01:33]}  Rd7 {[%clk 0:02:42]} 23. g4 {[%clk 0:01:30]}  Rad8 {[%clk 0:02:41]} 24. f5 {[%clk 0:01:10]}  exf5 {[%clk 0:02:08]} 25. gxf5 {[%clk 0:00:59]}  Bh5 {[%clk 0:02:08]} 26. Rg1 {[%clk 0:01:00]}  Qxd4 {[%clk 0:02:04]} 27. Qg3 {[%clk 0:00:54]}  g6 {[%clk 0:01:55]} 28. fxg6 {[%clk 0:00:45]}  hxg6 {[%clk 0:01:40]} 29. Rxf7 {[%clk 0:00:28]}  Kh8 {[%clk 0:01:40]} 30. e6 {[%clk 0:00:19]}  Bh4 {[%clk 0:01:40]} 31. Rxd7 {[%clk 0:00:10]}  Rxd7 {[%clk 0:00:50]} 32. Qg2 {[%clk 0:00:07]}  Re7 {[%clk 0:00:48]} 33. Rf1 {[%clk 0:00:05]}  Kh7 {[%clk 0:00:45]} 34. Ne4 {[%clk 0:00:05]}  Qe3 {[%clk 0:00:40]} 35. Ng3 {[%clk 0:00:06]}  Bg4 {[%clk 0:00:32]} 36. Qf2 {[%clk 0:00:06]}  Qe5 {[%clk 0:00:28]} 37. Re1 {[%clk 0:00:02]}  Qf6 {[%clk 0:00:22]} 38. Kg1 {[%clk 0:00:01]}  Kg7 {[%clk 0:00:14]} 39. Re4 {[%clk 0:00:01]}  Qg5 {[%clk 0:00:08]} 40. Qf4 {[%clk 0:00:02]}  Qc5+ {[%clk 0:00:06]} 41. Kg2 {[%clk 0:00:01]}  Qc2+ {[%clk 0:00:05]} 42. Qf2 {[%clk 0:00:02]}  Qd3 {[%clk 0:00:04]} 43. Rf4 {[%clk 0:00:02]}  Bg5 {[%clk 0:00:01]} 44. Rxg4 {[%clk 0:00:01]}  Kh6 {[%clk 0:00:01]} 45. Re4 {[%clk 0:00:02]}  Qd5 {[%clk 0:00:02]} 46. Qe2 {[%clk 0:00:02]}  Qxa2 {[%clk 0:00:02]} 47. h4 {[%clk 0:00:03]} 1-0


[Site "https://www.chess.com"]